[Event "Early Titled Tuesday Blitz | February 8 2022"]
[White "Ashiev, Eduard"]
[Black "Goltseva, Ekaterina"]
[WhiteFideId "4130090"]
[BlackFideId "24173770"]
[WhiteElo "2004"]
[BlackElo "2140"]
[Result "0-1"]
[Round "04"]
[TimeControl "180+1"]
[Date "2022.02.08"]
[WhiteClock "0:00:01"]
[BlackClock "0:00:11"]

1. d4 {[%clk 0:02:53]}  Nf6 {[%clk 0:02:54]} 2. Nf3 {[%clk 0:02:53]}  e6 {[%clk 0:02:53]} 3. c4 {[%clk 0:02:54]}  d5 {[%clk 0:02:52]} 4. Nc3 {[%clk 0:02:53]}  dxc4 {[%clk 0:02:53]} 5. e4 {[%clk 0:02:51]}  b5 {[%clk 0:02:53]} 6. e5 {[%clk 0:02:49]}  Nfd7 {[%clk 0:02:53]} 7. Nxb5 {[%clk 0:02:47]}  Nb6 {[%clk 0:02:53]} 8. Nc3 {[%clk 0:02:44]}  Nc6 {[%clk 0:02:54]} 9. Be3 {[%clk 0:02:43]}  Be7 {[%clk 0:02:53]} 10. Be2 {[%clk 0:02:42]}  Bb7 {[%clk 0:02:45]} 11. O-O {[%clk 0:02:41]}  O-O {[%clk 0:02:44]} 12. Rc1 {[%clk 0:02:41]}  Rb8 {[%clk 0:02:35]} 13. Qc2 {[%clk 0:02:34]}  Nb4 {[%clk 0:02:28]} 14. Qb1 {[%clk 0:02:33]}  h6 {[%clk 0:02:20]} 15. Rfd1 {[%clk 0:02:33]}  Qd7 {[%clk 0:02:17]} 16. a3 {[%clk 0:02:16]}  N4d5 {[%clk 0:02:06]} 17. Ne4 {[%clk 0:02:14]}  Qc6 {[%clk 0:01:42]} 18. Nfd2 {[%clk 0:02:05]}  c3 {[%clk 0:01:34]} 19. Bf3 {[%clk 0:01:48]}  Na4 {[%clk 0:01:22]} 20. Nxc3 {[%clk 0:01:23]}  Naxc3 {[%clk 0:01:16]} 21. bxc3 {[%clk 0:01:18]}  Bxa3 {[%clk 0:01:07]} 22. c4 {[%clk 0:01:08]}  Ba8 {[%clk 0:00:39]} 23. Qd3 {[%clk 0:00:25]}  Bxc1 {[%clk 0:00:33]} 24. cxd5 {[%clk 0:00:24]}  exd5 {[%clk 0:00:29]} 25. h4 {[%clk 0:00:15]}  Bxd2 {[%clk 0:00:30]} 26. Bxd2 {[%clk 0:00:13]}  Qb5 {[%clk 0:00:24]} 27. Qe3 {[%clk 0:00:13]}  Qb3 {[%clk 0:00:23]} 28. Qf4 {[%clk 0:00:13]}  Rb6 {[%clk 0:00:18]} 29. Re1 {[%clk 0:00:12]}  Qd3 {[%clk 0:00:17]} 30. Be3 {[%clk 0:00:11]}  a5 {[%clk 0:00:16]} 31. Qg3 {[%clk 0:00:10]}  Qg6 {[%clk 0:00:16]} 32. Qh3 {[%clk 0:00:09]}  Rb1 {[%clk 0:00:16]} 33. Bd1 {[%clk 0:00:06]}  a4 {[%clk 0:00:16]} 34. h5 {[%clk 0:00:06]}  Qd3 {[%clk 0:00:15]} 35. Qf3 {[%clk 0:00:06]}  a3 {[%clk 0:00:15]} 36. Kh2 {[%clk 0:00:06]}  a2 {[%clk 0:00:15]} 37. Qg4 {[%clk 0:00:04]}  Kh8 {[%clk 0:00:15]} 38. Be2 {[%clk 0:00:03]}  Qc2 {[%clk 0:00:14]} 39. Bxh6 {[%clk 0:00:02]}  gxh6 {[%clk 0:00:13]} 40. Qh4 {[%clk 0:00:02]}  Qf5 {[%clk 0:00:12]} 41. Qe7 {[%clk 0:00:02]}  Rg8 {[%clk 0:00:11]} 42. Bf3 {[%clk 0:00:02]}  Rxe1 {[%clk 0:00:11]} 43. e6 {[%clk 0:00:01]}  Rxe6 {[%clk 0:00:11]} 0-1


[Site "https://www.chess.com"]

[Event "Early Titled Tuesday Blitz | February 8 2022"]
[White "Atakhan, Abtin"]
[Black "Hess, Robert"]
[WhiteFideId "22502203"]
[BlackFideId "2022036"]
[WhiteElo "2119"]
[BlackElo "2557"]
[Result "0-1"]
[Round "04"]
[TimeControl "180+1"]
[Date "2022.02.08"]
[WhiteClock "0:00:01"]
[BlackClock "0:00:06"]

1. Nf3 {[%clk 0:03:00]}  g6 {[%clk 0:03:00]} 2. c4 {[%clk 0:03:00]}  Bg7 {[%clk 0:03:01]} 3. e4 {[%clk 0:02:59]}  d6 {[%clk 0:02:59]} 4. d4 {[%clk 0:02:57]}  Bg4 {[%clk 0:02:57]} 5. Be2 {[%clk 0:02:42]}  Nc6 {[%clk 0:02:57]} 6. Be3 {[%clk 0:02:40]}  e5 {[%clk 0:02:57]} 7. d5 {[%clk 0:02:37]}  Bxf3 {[%clk 0:02:57]} 8. Bxf3 {[%clk 0:02:38]}  Nd4 {[%clk 0:02:58]} 9. Nc3 {[%clk 0:02:35]}  Ne7 {[%clk 0:02:47]} 10. O-O {[%clk 0:02:21]}  O-O {[%clk 0:02:47]} 11. Nb5 {[%clk 0:02:10]}  c5 {[%clk 0:02:23]} 12. dxc6 {[%clk 0:02:09]}  Nexc6 {[%clk 0:02:07]} 13. Nc3 {[%clk 0:02:06]}  Bf6 {[%clk 0:01:33]} 14. Bg4 {[%clk 0:01:43]}  Ne6 {[%clk 0:01:12]} 15. Bxe6 {[%clk 0:01:15]}  fxe6 {[%clk 0:01:12]} 16. c5 {[%clk 0:01:11]}  Nd4 {[%clk 0:01:06]} 17. cxd6 {[%clk 0:00:56]}  Qxd6 {[%clk 0:01:07]} 18. Qa4 {[%clk 0:00:44]}  a6 {[%clk 0:01:00]} 19. Rad1 {[%clk 0:00:26]}  b5 {[%clk 0:01:00]} 20. Qb3 {[%clk 0:00:19]}  Rfd8 {[%clk 0:00:33]} 21. Bxd4 {[%clk 0:00:15]}  exd4 {[%clk 0:00:34]} 22. Ne2 {[%clk 0:00:15]}  Kg7 {[%clk 0:00:18]} 23. Nc1 {[%clk 0:00:15]}  Rac8 {[%clk 0:00:16]} 24. Nd3 {[%clk 0:00:15]}  e5 {[%clk 0:00:15]} 25. f4 {[%clk 0:00:12]}  exf4 {[%clk 0:00:15]} 26. Nxf4 {[%clk 0:00:09]}  Re8 {[%clk 0:00:12]} 27. Nd5 {[%clk 0:00:08]}  Be5 {[%clk 0:00:12]} 28. Qh3 {[%clk 0:00:03]}  Qe6 {[%clk 0:00:10]} 29. Qxe6 {[%clk 0:00:02]}  Rxe6 {[%clk 0:00:11]} 30. Rfe1 {[%clk 0:00:03]}  Rc2 {[%clk 0:00:10]} 31. b3 {[%clk 0:00:02]}  Rxa2 {[%clk 0:00:10]} 32. Nb4 {[%clk 0:00:01]}  Rb2 {[%clk 0:00:08]} 33. Rd3 {[%clk 0:00:02]}  a5 {[%clk 0:00:07]} 34. Nd5 {[%clk 0:00:02]}  Rc6 {[%clk 0:00:06]} 35. Rf1 {[%clk 0:00:01]}  Rcc2 {[%clk 0:00:06]} 0-1


[Site "https://www.chess.com"]

[Event "Early Titled Tuesday Blitz | February 8 2022"]
[White "Avazkhonov, Alikhon"]
[Black "Moroni, Luca Jr"]
[WhiteFideId "14208504"]
[BlackFideId "865834"]
[WhiteElo "1739"]
[BlackElo "2573"]
[Result "0-1"]
[Round "04"]
[TimeControl "180+1"]
[Date "2022.02.08"]
[WhiteClock "0:00:02"]
[BlackClock "0:01:37"]

1. f4 {[%clk 0:03:00]}  e5 {[%clk 0:02:38]} 2. fxe5 {[%clk 0:02:59]}  d6 {[%clk 0:02:39]} 3. exd6 {[%clk 0:02:58]}  Bxd6 {[%clk 0:02:40]} 4. Nf3 {[%clk 0:02:59]}  Nc6 {[%clk 0:02:39]} 5. e3 {[%clk 0:02:53]}  g5 {[%clk 0:02:36]} 6. g3 {[%clk 0:02:45]}  h5 {[%clk 0:02:33]} 7. d4 {[%clk 0:02:32]}  h4 {[%clk 0:02:33]} 8. gxh4 {[%clk 0:02:13]}  g4 {[%clk 0:02:31]} 9. Ng5 {[%clk 0:01:47]}  Rxh4 {[%clk 0:02:29]} 10. Ne4 {[%clk 0:01:23]}  Bxh2 {[%clk 0:02:27]} 11. Bg2 {[%clk 0:01:18]}  f5 {[%clk 0:02:22]} 12. Nf2 {[%clk 0:01:05]}  Bg3 {[%clk 0:02:20]} 13. Qe2 {[%clk 0:00:41]}  Rxh1+ {[%clk 0:02:19]} 14. Bxh1 {[%clk 0:00:41]}  Qh4 {[%clk 0:02:20]} 15. Bg2 {[%clk 0:00:34]}  Qh2 {[%clk 0:02:12]} 16. Kf1 {[%clk 0:00:27]}  Nf6 {[%clk 0:02:05]} 17. Nc3 {[%clk 0:00:22]}  Bd7 {[%clk 0:02:04]} 18. e4 {[%clk 0:00:05]}  O-O-O {[%clk 0:02:02]} 19. d5 {[%clk 0:00:04]}  Nd4 {[%clk 0:02:00]} 20. Qd3 {[%clk 0:00:03]}  Be5 {[%clk 0:01:48]} 21. Bg5 {[%clk 0:00:03]}  Nh5 {[%clk 0:01:39]} 22. exf5 {[%clk 0:00:02]}  Ng3+ {[%clk 0:01:39]} 23. Ke1 {[%clk 0:00:02]}  Qxg2 {[%clk 0:01:37]} 0-1


[Site "https://www.chess.com"]

[Event "Early Titled Tuesday Blitz | February 8 2022"]
[White "Avila Pavas, Santiago"]
[Black "Bifulco, Michel"]
[WhiteFideId "4437128"]
[BlackFideId "828580"]
[WhiteElo "2242"]
[BlackElo "2165"]
[Result "1-0"]
[Round "04"]
[TimeControl "180+1"]
[Date "2022.02.08"]
[WhiteClock "0:01:18"]
[BlackClock "0:00:53"]

1. d4 {[%clk 0:02:50]}  Nf6 {[%clk 0:02:59]} 2. Nf3 {[%clk 0:02:49]}  g6 {[%clk 0:03:00]} 3. Bg5 {[%clk 0:02:49]}  Bg7 {[%clk 0:03:00]} 4. Nbd2 {[%clk 0:02:50]}  d5 {[%clk 0:02:59]} 5. e3 {[%clk 0:02:50]}  O-O {[%clk 0:02:59]} 6. Be2 {[%clk 0:02:50]}  c6 {[%clk 0:02:56]} 7. O-O {[%clk 0:02:50]}  Nbd7 {[%clk 0:02:57]} 8. c4 {[%clk 0:02:49]}  Re8 {[%clk 0:02:56]} 9. Qb3 {[%clk 0:02:47]}  dxc4 {[%clk 0:02:53]} 10. Bxc4 {[%clk 0:02:42]}  e6 {[%clk 0:02:53]} 11. Rfd1 {[%clk 0:02:41]}  Nb6 {[%clk 0:02:53]} 12. Bf1 {[%clk 0:02:41]}  Qd5 {[%clk 0:02:48]} 13. Rac1 {[%clk 0:02:32]}  Ne4 {[%clk 0:02:45]} 14. Nxe4 {[%clk 0:02:30]}  Qxe4 {[%clk 0:02:45]} 15. Rc5 {[%clk 0:02:15]}  Nd5 {[%clk 0:02:41]} 16. h3 {[%clk 0:02:11]}  b6 {[%clk 0:02:03]} 17. Rcc1 {[%clk 0:02:02]}  Nf6 {[%clk 0:01:42]} 18. Bd3 {[%clk 0:01:56]}  Qd5 {[%clk 0:01:42]} 19. Qxd5 {[%clk 0:01:51]}  cxd5 {[%clk 0:01:42]} 20. Rc7 {[%clk 0:01:51]}  Ne4 {[%clk 0:01:32]} 21. Bf4 {[%clk 0:01:50]}  Bf8 {[%clk 0:01:26]} 22. Rdc1 {[%clk 0:01:39]}  Bd6 {[%clk 0:01:24]} 23. Bxd6 {[%clk 0:01:32]}  Nxd6 {[%clk 0:01:24]} 24. Ne5 {[%clk 0:01:32]}  Bb7 {[%clk 0:01:19]} 25. Nxf7 {[%clk 0:01:27]}  Nxf7 {[%clk 0:01:07]} 26. Rxb7 {[%clk 0:01:26]}  Nd6 {[%clk 0:01:07]} 27. Rd7 {[%clk 0:01:26]}  Rad8 {[%clk 0:01:06]} 28. Rcc7 {[%clk 0:01:26]}  Rxd7 {[%clk 0:01:05]} 29. Rxd7 {[%clk 0:01:27]}  Nc8 {[%clk 0:01:04]} 30. Ba6 {[%clk 0:01:23]}  h6 {[%clk 0:01:02]} 31. Rc7 {[%clk 0:01:19]}  Nd6 {[%clk 0:00:55]} 32. Rxa7 {[%clk 0:01:19]}  Ne4 {[%clk 0:00:53]} 33. Bd3 {[%clk 0:01:18]} 1-0


[Site "https://www.chess.com"]

[Event "Early Titled Tuesday Blitz | February 8 2022"]
[White "Berdychevskaya, Natasha"]
[Black "Liyanage, Ranindu Dilshan"]
[WhiteFideId "4159322"]
[BlackFideId "9915834"]
[WhiteElo "1780"]
[BlackElo "1858"]
[Result "1/2-1/2"]
[Round "04"]
[TimeControl "180+1"]
[Date "2022.02.08"]
[WhiteClock "0:00:06"]
[BlackClock "0:00:09"]

1. d4 {[%clk 0:01:53]}  Nf6 {[%clk 0:02:59]} 2. Bf4 {[%clk 0:01:52]}  d5 {[%clk 0:02:58]} 3. e3 {[%clk 0:01:52]}  c5 {[%clk 0:02:59]} 4. c3 {[%clk 0:01:52]}  Nc6 {[%clk 0:02:59]} 5. Nd2 {[%clk 0:01:52]}  Bf5 {[%clk 0:02:58]} 6. Qb3 {[%clk 0:01:51]}  Qd7 {[%clk 0:02:57]} 7. Ngf3 {[%clk 0:01:49]}  c4 {[%clk 0:02:57]} 8. Qd1 {[%clk 0:01:46]}  e6 {[%clk 0:02:57]} 9. Be2 {[%clk 0:01:42]}  h6 {[%clk 0:02:56]} 10. h3 {[%clk 0:01:41]}  Bd6 {[%clk 0:02:57]} 11. Ne5 {[%clk 0:01:40]}  Qc7 {[%clk 0:02:56]} 12. Ndf3 {[%clk 0:01:38]}  b5 {[%clk 0:02:50]} 13. a3 {[%clk 0:01:35]}  a5 {[%clk 0:02:47]} 14. O-O {[%clk 0:01:35]}  O-O {[%clk 0:02:45]} 15. Nxc6 {[%clk 0:01:32]}  Qxc6 {[%clk 0:02:45]} 16. Bxd6 {[%clk 0:01:30]}  Qxd6 {[%clk 0:02:46]} 17. Ne5 {[%clk 0:01:29]}  b4 {[%clk 0:02:44]} 18. axb4 {[%clk 0:01:28]}  axb4 {[%clk 0:02:45]} 19. Bf3 {[%clk 0:01:26]}  Rfb8 {[%clk 0:02:20]} 20. Rxa8 {[%clk 0:01:07]}  Rxa8 {[%clk 0:02:20]} 21. Nxc4 {[%clk 0:01:07]}  Qc7 {[%clk 0:02:07]} 22. Ne5 {[%clk 0:00:49]}  bxc3 {[%clk 0:01:59]} 23. bxc3 {[%clk 0:00:50]}  Qxc3 {[%clk 0:01:59]} 24. Qc1 {[%clk 0:00:49]}  Qxc1 {[%clk 0:01:47]} 25. Rxc1 {[%clk 0:00:50]}  Ne8 {[%clk 0:01:47]} 26. g4 {[%clk 0:00:46]}  Bh7 {[%clk 0:01:44]} 27. Kg2 {[%clk 0:00:39]}  f6 {[%clk 0:01:23]} 28. Nd7 {[%clk 0:00:38]}  Kf7 {[%clk 0:01:15]} 29. Rc6 {[%clk 0:00:37]}  Rd8 {[%clk 0:00:59]} 30. Nc5 {[%clk 0:00:33]}  Rd6 {[%clk 0:00:59]} 31. Rxd6 {[%clk 0:00:25]}  Nxd6 {[%clk 0:01:00]} 32. Kg3 {[%clk 0:00:23]}  Ke7 {[%clk 0:00:59]} 33. h4 {[%clk 0:00:22]}  Bg8 {[%clk 0:00:58]} 34. Be2 {[%clk 0:00:19]}  e5 {[%clk 0:00:58]} 35. Bd3 {[%clk 0:00:17]}  Be6 {[%clk 0:00:55]} 36. f4 {[%clk 0:00:16]}  exd4 {[%clk 0:00:43]} 37. exd4 {[%clk 0:00:15]}  Bc8 {[%clk 0:00:43]} 38. Kf3 {[%clk 0:00:13]}  Ne8 {[%clk 0:00:37]} 39. g5 {[%clk 0:00:09]}  hxg5 {[%clk 0:00:35]} 40. hxg5 {[%clk 0:00:09]}  Nc7 {[%clk 0:00:35]} 41. gxf6+ {[%clk 0:00:09]}  Kxf6 {[%clk 0:00:36]} 42. Nb3 {[%clk 0:00:07]}  Ne8 {[%clk 0:00:34]} 43. Nc5 {[%clk 0:00:07]}  Nd6 {[%clk 0:00:34]} 44. Ke3 {[%clk 0:00:07]}  Kf7 {[%clk 0:00:26]} 45. Kf3 {[%clk 0:00:06]}  Ne8 {[%clk 0:00:26]} 46. Ke3 {[%clk 0:00:06]}  Nf6 {[%clk 0:00:27]} 47. Kf3 {[%clk 0:00:06]}  Bg4+ {[%clk 0:00:27]} 48. Ke3 {[%clk 0:00:06]}  Ke7 {[%clk 0:00:27]} 49. Nb3 {[%clk 0:00:06]}  Kd6 {[%clk 0:00:28]} 50. Nc5 {[%clk 0:00:06]}  Bc8 {[%clk 0:00:28]} 51. Kf3 {[%clk 0:00:06]}  Ne8 {[%clk 0:00:26]} 52. Ke3 {[%clk 0:00:06]}  Nc7 {[%clk 0:00:26]} 53. Kf3 {[%clk 0:00:06]}  Kc6 {[%clk 0:00:24]} 54. Ke3 {[%clk 0:00:06]}  Kd6 {[%clk 0:00:24]} 55. Kf3 {[%clk 0:00:06]}  Ke7 {[%clk 0:00:25]} 56. Ke3 {[%clk 0:00:06]}  Kf6 {[%clk 0:00:26]} 57. Kf3 {[%clk 0:00:07]}  Ne8 {[%clk 0:00:25]} 58. Ke3 {[%clk 0:00:07]}  Nd6 {[%clk 0:00:25]} 59. Kf3 {[%clk 0:00:07]}  Bf5 {[%clk 0:00:26]} 60. Bxf5 {[%clk 0:00:06]}  Kxf5 {[%clk 0:00:27]} 61. Nd3 {[%clk 0:00:04]}  Nb5 {[%clk 0:00:24]} 62. Ke3 {[%clk 0:00:03]}  Na3 {[%clk 0:00:23]} 63. Ne5 {[%clk 0:00:03]}  Nc2+ {[%clk 0:00:23]} 64. Kd3 {[%clk 0:00:03]}  Nb4+ {[%clk 0:00:24]} 65. Ke3 {[%clk 0:00:04]}  Nc2+ {[%clk 0:00:21]} 66. Kd3 {[%clk 0:00:04]}  Ne1+ {[%clk 0:00:22]} 67. Ke3 {[%clk 0:00:04]}  Ng2+ {[%clk 0:00:22]} 68. Kf3 {[%clk 0:00:04]}  Nxf4 {[%clk 0:00:22]} 69. Nd7 {[%clk 0:00:04]}  g5 {[%clk 0:00:22]} 70. Nb6 {[%clk 0:00:04]}  Kg6 {[%clk 0:00:14]} 71. Nd7 {[%clk 0:00:04]}  Kh5 {[%clk 0:00:13]} 72. Ne5 {[%clk 0:00:04]}  Ne6 {[%clk 0:00:12]} 73. Nc6 {[%clk 0:00:03]}  g4+ {[%clk 0:00:10]} 74. Kg3 {[%clk 0:00:03]}  Kg5 {[%clk 0:00:11]} 75. Ne7 {[%clk 0:00:02]}  Nc7 {[%clk 0:00:11]} 76. Ng8 {[%clk 0:00:02]}  Kf5 {[%clk 0:00:10]} 77. Ne7+ {[%clk 0:00:02]}  Kf6 {[%clk 0:00:10]} 78. Ng8+ {[%clk 0:00:02]}  Kg5 {[%clk 0:00:09]} 79. Ne7 {[%clk 0:00:03]}  Kh5 {[%clk 0:00:09]} 80. Ng8 {[%clk 0:00:03]}  Ne6 {[%clk 0:00:09]} 81. Nf6+ {[%clk 0:00:03]}  Kg5 {[%clk 0:00:09]} 82. Nxd5 {[%clk 0:00:04]}  Nxd4 {[%clk 0:00:10]} 83. Ne3 {[%clk 0:00:04]}  Nf5+ {[%clk 0:00:03]} 84. Nxf5 {[%clk 0:00:04]}  Kxf5 {[%clk 0:00:04]} 85. Kg2 {[%clk 0:00:05]}  Kg5 {[%clk 0:00:05]} 86. Kg3 {[%clk 0:00:05]}  Kh5 {[%clk 0:00:05]} 87. Kg2 {[%clk 0:00:05]}  Kh4 {[%clk 0:00:06]} 88. Kh2 {[%clk 0:00:05]}  g3+ {[%clk 0:00:07]} 89. Kg2 {[%clk 0:00:06]}  Kg4 {[%clk 0:00:08]} 90. Kg1 {[%clk 0:00:06]}  Kf4 {[%clk 0:00:09]} 91. Kg2 {[%clk 0:00:06]}  Ke3 {[%clk 0:00:09]} 92. Kxg3 {[%clk 0:00:06]} 1/2-1/2


[Site "https://www.chess.com"]

[Event "Early Titled Tuesday Blitz | February 8 2022"]
[White "Bocharov, Dmitry"]
[Black "Abdusattorov, Nodirbek"]
[WhiteFideId "4138716"]
[BlackFideId "14204118"]
[WhiteElo "2541"]
[BlackElo "2663"]
[Result "0-1"]
[Round "04"]
[TimeControl "180+1"]
[Date "2022.02.08"]
[WhiteClock "0:01:08"]
[BlackClock "0:01:22"]

1. c4 {[%clk 0:02:56]}  Nf6 {[%clk 0:02:57]} 2. g3 {[%clk 0:02:57]}  g6 {[%clk 0:02:56]} 3. Bg2 {[%clk 0:02:57]}  Bg7 {[%clk 0:02:57]} 4. Nf3 {[%clk 0:02:57]}  O-O {[%clk 0:02:58]} 5. O-O {[%clk 0:02:58]}  d6 {[%clk 0:02:59]} 6. d4 {[%clk 0:02:58]}  Nbd7 {[%clk 0:03:00]} 7. Nc3 {[%clk 0:02:58]}  e5 {[%clk 0:02:59]} 8. e4 {[%clk 0:02:59]}  exd4 {[%clk 0:02:58]} 9. Nxd4 {[%clk 0:02:59]}  Nc5 {[%clk 0:02:59]} 10. h3 {[%clk 0:02:57]}  Re8 {[%clk 0:02:59]} 11. Re1 {[%clk 0:02:58]}  h6 {[%clk 0:03:00]} 12. Bf4 {[%clk 0:02:54]}  Ne6 {[%clk 0:02:50]} 13. Be3 {[%clk 0:02:53]}  Ng5 {[%clk 0:02:38]} 14. Qc1 {[%clk 0:01:48]}  Nfxe4 {[%clk 0:02:01]} 15. Nxe4 {[%clk 0:01:46]}  Nxe4 {[%clk 0:02:01]} 16. Bxh6 {[%clk 0:01:46]}  Bxd4 {[%clk 0:01:57]} 17. Rxe4 {[%clk 0:01:45]}  Rxe4 {[%clk 0:01:56]} 18. Bxe4 {[%clk 0:01:45]}  Bxh3 {[%clk 0:01:47]} 19. Qd2 {[%clk 0:01:40]}  Qf6 {[%clk 0:01:43]} 20. Rd1 {[%clk 0:01:34]}  c5 {[%clk 0:01:33]} 21. b3 {[%clk 0:01:08]}  Re8 {[%clk 0:01:26]} 22. Re1 {[%clk 0:01:08]}  Bc3 {[%clk 0:01:22]} 0-1


[Site "https://www.chess.com"]

[Event "Early Titled Tuesday Blitz | February 8 2022"]
[White "Bortnyk, Olexandr"]
[Black "Urazayev, Arystanbek"]
[WhiteFideId "14120828"]
[BlackFideId "13709810"]
[WhiteElo "2723"]
[BlackElo "2321"]
[Result "1-0"]
[Round "04"]
[TimeControl "180+1"]
[Date "2022.02.08"]
[WhiteClock "0:01:07"]
[BlackClock "0:00:37"]

1. e4 {[%clk 0:03:00]}  e5 {[%clk 0:03:00]} 2. Bc4 {[%clk 0:02:57]}  Nf6 {[%clk 0:03:00]} 3. d3 {[%clk 0:02:57]}  Nc6 {[%clk 0:03:01]} 4. Nc3 {[%clk 0:02:57]}  Bb4 {[%clk 0:03:01]} 5. Bd2 {[%clk 0:02:57]}  d6 {[%clk 0:02:58]} 6. Nge2 {[%clk 0:02:55]}  Na5 {[%clk 0:02:52]} 7. O-O {[%clk 0:02:48]}  Nxc4 {[%clk 0:02:46]} 8. dxc4 {[%clk 0:02:49]}  Be6 {[%clk 0:02:47]} 9. b3 {[%clk 0:02:45]}  h6 {[%clk 0:02:40]} 10. f4 {[%clk 0:02:38]}  Bg4 {[%clk 0:02:38]} 11. Qe1 {[%clk 0:02:23]}  Qd7 {[%clk 0:02:14]} 12. a3 {[%clk 0:02:05]}  Bc5+ {[%clk 0:02:09]} 13. Kh1 {[%clk 0:02:05]}  Bxe2 {[%clk 0:02:02]} 14. Qxe2 {[%clk 0:02:04]}  Qg4 {[%clk 0:01:56]} 15. Qd3 {[%clk 0:01:56]}  O-O-O {[%clk 0:01:39]} 16. Rf3 {[%clk 0:01:46]}  exf4 {[%clk 0:01:33]} 17. Bxf4 {[%clk 0:01:42]}  Qe6 {[%clk 0:01:26]} 18. b4 {[%clk 0:01:30]}  Bb6 {[%clk 0:01:25]} 19. a4 {[%clk 0:01:30]}  Ng4 {[%clk 0:01:13]} 20. Qe2 {[%clk 0:01:15]}  Ne5 {[%clk 0:01:08]} 21. Bxe5 {[%clk 0:01:12]}  dxe5 {[%clk 0:01:08]} 22. c5 {[%clk 0:01:12]}  Rd4 {[%clk 0:00:47]} 23. cxb6 {[%clk 0:01:11]}  axb6 {[%clk 0:00:48]} 24. Nd5 {[%clk 0:01:07]}  c6 {[%clk 0:00:37]} 25. c3 {[%clk 0:01:07]} 1-0


[Site "https://www.chess.com"]

[Event "Early Titled Tuesday Blitz | February 8 2022"]
[White "Bruned, Yvain"]
[Black "Lodici, Lorenzo"]
[WhiteFideId "2250292"]
[BlackFideId "884189"]
[WhiteElo "2073"]
[BlackElo "2265"]
[Result "0-1"]
[Round "04"]
[TimeControl "180+1"]
[Date "2022.02.08"]
[WhiteClock "0:00:12"]
[BlackClock "0:00:55"]

1. b3 {[%clk 0:03:00]}  a5 {[%clk 0:02:57]} 2. a4 {[%clk 0:02:56]}  h5 {[%clk 0:02:54]} 3. Bb2 {[%clk 0:02:51]}  h4 {[%clk 0:02:53]} 4. h3 {[%clk 0:02:52]}  Rh6 {[%clk 0:02:48]} 5. e3 {[%clk 0:02:50]}  g5 {[%clk 0:02:48]} 6. d4 {[%clk 0:02:41]}  e6 {[%clk 0:02:47]} 7. c4 {[%clk 0:02:23]}  Nc6 {[%clk 0:02:47]} 8. Nc3 {[%clk 0:02:18]}  Nb4 {[%clk 0:02:46]} 9. Be2 {[%clk 0:01:59]}  Bg7 {[%clk 0:02:46]} 10. Nf3 {[%clk 0:01:55]}  d5 {[%clk 0:02:43]} 11. Ba3 {[%clk 0:01:48]}  c5 {[%clk 0:02:32]} 12. cxd5 {[%clk 0:01:17]}  exd5 {[%clk 0:02:31]} 13. Bb5+ {[%clk 0:01:17]}  Kf8 {[%clk 0:02:28]} 14. Rc1 {[%clk 0:01:11]}  b6 {[%clk 0:02:26]} 15. Ne2 {[%clk 0:00:45]}  Qd6 {[%clk 0:02:10]} 16. Nxg5 {[%clk 0:00:38]}  Ra7 {[%clk 0:02:04]} 17. Nf3 {[%clk 0:00:38]}  Re7 {[%clk 0:02:02]} 18. Qd2 {[%clk 0:00:35]}  Nf6 {[%clk 0:01:59]} 19. Nc3 {[%clk 0:00:32]}  Bf5 {[%clk 0:01:50]} 20. O-O {[%clk 0:00:31]}  Ne4 {[%clk 0:01:27]} 21. Nxe4 {[%clk 0:00:27]}  Bxe4 {[%clk 0:01:28]} 22. Ne1 {[%clk 0:00:26]}  Rg6 {[%clk 0:01:18]} 23. Bxb4 {[%clk 0:00:24]}  axb4 {[%clk 0:01:18]} 24. dxc5 {[%clk 0:00:23]}  bxc5 {[%clk 0:01:18]} 25. Bd3 {[%clk 0:00:23]}  Bc3 {[%clk 0:01:11]} 26. Qe2 {[%clk 0:00:21]}  f5 {[%clk 0:01:01]} 27. Bxe4 {[%clk 0:00:20]}  fxe4 {[%clk 0:01:02]} 28. Nc2 {[%clk 0:00:16]}  Reg7 {[%clk 0:01:01]} 29. f4 {[%clk 0:00:17]}  Rxg2+ {[%clk 0:00:58]} 30. Qxg2 {[%clk 0:00:17]}  Rxg2+ {[%clk 0:00:59]} 31. Kxg2 {[%clk 0:00:18]}  Qg6+ {[%clk 0:00:59]} 32. Kh1 {[%clk 0:00:17]}  Qg3 {[%clk 0:00:59]} 33. Rcd1 {[%clk 0:00:16]}  Qxh3+ {[%clk 0:00:59]} 34. Kg1 {[%clk 0:00:16]}  d4 {[%clk 0:00:57]} 35. exd4 {[%clk 0:00:12]}  cxd4 {[%clk 0:00:57]} 36. Nxd4 {[%clk 0:00:12]}  Bxd4+ {[%clk 0:00:55]} 0-1


[Site "https://www.chess.com"]

[Event "Early Titled Tuesday Blitz | February 8 2022"]
[White "Camacho Collados, Jose"]
[Black "Mekhitarian, Krikor Sevag"]
[WhiteFideId "2265427"]
[BlackFideId "2107660"]
[WhiteElo "2351"]
[BlackElo "2598"]
[Result "0-1"]
[Round "04"]
[TimeControl "180+1"]
[Date "2022.02.08"]
[WhiteClock "0:01:17"]
[BlackClock "0:00:50"]

1. e4 {[%clk 0:03:00]}  c5 {[%clk 0:02:59]} 2. Nf3 {[%clk 0:03:00]}  g6 {[%clk 0:03:00]} 3. g3 {[%clk 0:02:59]}  Nc6 {[%clk 0:03:00]} 4. Bg2 {[%clk 0:02:59]}  Bg7 {[%clk 0:03:00]} 5. O-O {[%clk 0:02:59]}  d6 {[%clk 0:02:58]} 6. Re1 {[%clk 0:02:56]}  e5 {[%clk 0:02:57]} 7. c3 {[%clk 0:02:54]}  Nge7 {[%clk 0:02:56]} 8. d4 {[%clk 0:02:55]}  cxd4 {[%clk 0:02:50]} 9. cxd4 {[%clk 0:02:56]}  exd4 {[%clk 0:02:51]} 10. Na3 {[%clk 0:02:54]}  O-O {[%clk 0:02:47]} 11. Nb5 {[%clk 0:02:54]}  Bg4 {[%clk 0:02:46]} 12. Bg5 {[%clk 0:02:47]}  a6 {[%clk 0:02:43]} 13. Na3 {[%clk 0:02:42]}  h6 {[%clk 0:02:41]} 14. Bxe7 {[%clk 0:02:40]}  Qxe7 {[%clk 0:02:40]} 15. Rc1 {[%clk 0:02:37]}  Ne5 {[%clk 0:02:34]} 16. Nc4 {[%clk 0:02:27]}  Rac8 {[%clk 0:02:23]} 17. Ncd2 {[%clk 0:02:04]}  Rxc1 {[%clk 0:02:21]} 18. Qxc1 {[%clk 0:02:05]}  Nd3 {[%clk 0:02:21]} 19. Qc4 {[%clk 0:01:57]}  Nxe1 {[%clk 0:02:19]} 20. Nxe1 {[%clk 0:01:58]}  Rc8 {[%clk 0:02:16]} 21. Qb4 {[%clk 0:01:56]}  Qc7 {[%clk 0:01:46]} 22. f3 {[%clk 0:01:46]}  Be6 {[%clk 0:01:42]} 23. Nd3 {[%clk 0:01:42]}  d5 {[%clk 0:01:37]} 24. f4 {[%clk 0:01:30]}  Qc2 {[%clk 0:01:28]} 25. exd5 {[%clk 0:01:30]}  Qxd3 {[%clk 0:01:15]} 26. dxe6 {[%clk 0:01:27]}  Qe3+ {[%clk 0:01:15]} 27. Kh1 {[%clk 0:01:24]}  Qxe6 {[%clk 0:01:07]} 28. Bxb7 {[%clk 0:01:22]}  Qe1+ {[%clk 0:00:58]} 29. Kg2 {[%clk 0:01:22]}  Rc2 {[%clk 0:00:55]} 30. Kh3 {[%clk 0:01:19]}  Qxd2 {[%clk 0:00:52]} 31. Qe7 {[%clk 0:01:17]}  Qxh2+ {[%clk 0:00:50]} 32. Kg4 {[%clk 0:01:17]}  Qh5# {[%clk 0:00:50]} 0-1


[Site "https://www.chess.com"]